bitfinex/quotes_SOLUSD_20241202
["timestamp","ask_amount","ask_price","bid_price","bid_amount"]
[1733144894422,0.5288769,223.06,223.05,4.495]
[1733144894611,0.5288769,223.06,223.02,4.495]
[1733144894932,0.5288769,223.06,223.02,25.78443638]
[1733144895101,0.5288769,223.06,223.03,21.28943638]
[1733144895511,0.5288769,223.06,223.05,21.28943638]
[1733144895729,0.5288769,223.06,223.05,25.78443638]
[1733144895923,0.5288769,223.06,223.05,26.03541638]
[1733144896226,1.12,223.22,223.09,4.62049]
[1733144896429,1.12,223.22,223.16,21.28943638]
[1733144896430,1.11740864,223.21,223.16,21.28943638]
[1733144896931,1.11740864,223.21,223.17,21.28943638]
[1733144897305,22.40682149,223.23,223.17,21.28943638]
[1733144897622,1.11738511,223.23,223.19,21.28943638]
[1733144897830,1.11723301,223.24,223.21,21.28943638]
[1733144898127,1.11718793,223.26,223.22,21.28943638]
[1733144898302,1.6459749,223.29,223.23,25.78443638]
[1733144898629,1.11695796,223.28,223.24,4.495]
[1733144898928,0.5288769,223.29,223.14,20.0]
[1733144898929,0.5288769,223.29,223.2,0.37647]
[1733144899232,0.5288769,223.29,223.19,4.495]
[1733144899233,0.5288769,223.29,223.22,20.12549]
[1733144899399,0.5288769,223.29,223.25,0.12549]
[1733144899607,0.5288769,223.29,223.28,21.41492638]
[1733144899800,0.5288769,223.29,223.28,47.76240573]
[1733144900027,0.14941896,223.4,223.32,4.62049]
[1733144900217,0.14941896,223.4,223.33,0.437198]
[1733144900605,0.14941896,223.4,223.34,0.12549]
[1733144900819,0.14941896,223.4,223.35,4.9319764]
[1733144901134,0.14941896,223.4,223.36,0.25098]
[1733144901310,0.14941896,223.4,223.38,0.12549]
[1733144901311,0.25409676,223.4,223.38,0.12549]
[1733144901511,0.25409676,223.4,223.39,21.54041638]
[1733144901905,0.25409676,223.4,223.39,26.03541638]
[1733144902226,0.25409676,223.4,223.39,26.59736785]
[1733144902436,0.25409676,223.4,223.39,21.28943638]
[1733144902610,0.25409676,223.4,223.39,21.41492638]
[1733144902812,0.25409676,223.4,223.39,26.47195204]
[1733144903027,0.25409676,223.4,223.39,26.03541638]
[1733144903609,0.25409676,223.4,223.39,0.25098]
[1733144903933,0.25409676,223.4,223.39,35.08817096]
[1733144904106,0.25409676,223.4,223.39,35.21366096]
[1733144904612,34.40086472,223.51,223.42,20.0]
[1733144904813,34.40086472,223.51,223.46,4.495]
[1733144905012,34.40086472,223.52,223.46,38.89586472]
[1733144905221,34.40086472,223.51,223.46,4.495]
[1733144905524,34.40086472,223.52,223.46,4.495]
[1733144905705,34.40086472,223.51,223.46,4.495]
[1733144906129,34.40086472,223.51,223.45,4.495]
[1733144906632,23.776884,223.45,223.34,12.8127]
[1733144906803,1.11621169,223.51,223.35,0.43706572]
[1733144907126,24.895184,223.54,223.35,18.35009172]
[1733144907363,1.11580867,223.53,223.36,0.25098]
[1733144907536,1.11580867,223.53,223.38,0.25098]
[1733144907713,1.11580867,223.53,223.4,0.12549]
[1733144907908,1.11580867,223.53,223.43,4.495]
[1733144908129,34.40086472,223.48,223.43,4.495]
[1733144908811,34.40086472,223.49,223.44,0.12549]
[1733144909434,34.40086472,223.46,223.4,4.495]
[1733144909728,35.51663689,223.52,223.4,4.495]
[1733144909729,34.40086472,223.43,223.4,4.495]
[1733144910411,34.40086472,223.52,223.4,4.495]
[1733144910412,0.6409615,223.63,223.43,4.495]
[1733144910626,34.40086472,223.46,223.41,30.449048]
[1733144910930,10.0,223.59,223.41,12.5392]
[1733144910931,0.25098,223.56,223.41,12.5392]
[1733144911135,1.36699794,223.56,223.41,12.5392]
[1733144911319,1.36699794,223.56,223.34,31.3194]
[1733144911320,5.0,223.55,223.34,43.916]
[1733144911524,1.36938,223.53,223.35,4.495]
[1733144911735,24.027864,223.51,223.35,4.495]
[1733144912034,23.776884,223.49,223.35,4.495]
[1733144912240,23.776884,223.47,223.35,4.495]
[1733144912413,34.40086472,223.44,223.38,38.89586472]
[1733144912614,23.776884,223.44,223.4,4.495]
[1733144913038,58.17774872,223.45,223.4,4.495]
[1733144913243,34.40086472,223.44,223.4,4.495]
[1733144913933,23.776884,223.45,223.4,4.495]
[1733144914236,34.40086472,223.49,223.43,4.495]
[1733144914809,34.40086472,223.5,223.44,38.89586472]
[1733144915629,23.776884,223.49,223.44,38.89586472]
[1733144916116,20.0,223.46,223.41,34.40086472]
[1733144916316,34.52635472,223.48,223.38,0.43649005]
[1733144916317,58.17774872,223.44,223.38,34.40086472]
[1733144916625,58.17774872,223.44,223.34,43.916]
[1733144916626,34.40086472,223.44,223.37,34.40086472]
[1733144916828,34.40086472,223.43,223.36,34.40086472]
[1733144917019,1.11618698,223.43,223.36,4.495]
[1733144917221,23.902374,223.45,223.35,4.495]
[1733144917440,23.776884,223.43,223.38,4.495]
[1733144920348,34.40086472,223.39,223.35,4.495]
[1733144920516,1.1187,223.47,223.28,13.70866104]
[1733144920846,23.776884,223.45,223.31,0.43760224]
[1733144921132,23.776884,223.45,223.32,0.12549]
[1733144921341,1.11612488,223.52,223.32,0.25098]
[1733144921641,1.11600638,223.51,223.34,0.25098]
[1733144921835,1.11600638,223.51,223.36,0.25098]
[1733144922142,1.11600638,223.51,223.45,34.40086472]
[1733144922316,1.11600638,223.51,223.46,38.89586472]
[1733144922835,34.40086472,223.5,223.46,4.495]
[1733144923039,1.11597458,223.49,223.47,4.495]
[1733144923633,34.40086472,223.48,223.47,4.495]
[1733144923831,58.17774872,223.48,223.47,4.495]
[1733144924047,23.776884,223.47,223.4,34.40086472]
[1733144924251,1.11610933,223.46,223.44,4.495]
[1733144924740,34.40086472,223.49,223.44,4.495]
[1733144925130,34.40086472,223.48,223.44,4.495]
[1733144925338,34.40086472,223.49,223.44,4.495]
[1733144925559,21.17104115,223.5,223.45,4.495]
[1733144925726,21.17104115,223.5,223.44,21.17104115]
[1733144926050,22.28694238,223.49,223.42,21.17104115]
[1733144926544,21.17104115,223.49,223.43,4.495]
[1733144926848,22.28696521,223.48,223.44,4.495]
[1733144927338,21.17104115,223.48,223.41,21.17104115]
[1733144927842,22.28705634,223.47,223.42,4.495]
[1733144928041,21.17104115,223.46,223.41,4.495]
[1733144928350,21.17104115,223.48,223.41,25.66604115]
[1733144928521,24.8929013,223.47,223.41,25.66604115]
[1733144928721,21.17104115,223.49,223.43,25.66604115]
[1733144929725,1.11594425,223.48,223.43,4.495]
[1733144930130,22.2869854,223.48,223.44,4.495]
[1733144930446,21.17104115,223.48,223.44,4.495]
[1733144930831,21.17104115,223.49,223.44,4.495]
[1733144931035,1.1159454,223.48,223.44,4.495]
[1733144931338,1.1159454,223.48,223.43,4.495]
[1733144932233,19.92579947,223.49,223.43,4.495]
[1733144933134,1.79761227,223.57,223.47,25.66604115]
[1733144933443,1.79761227,223.57,223.48,4.495]
[1733144933444,21.17104115,223.5,223.48,4.495]
[1733144933832,21.17104115,223.49,223.48,4.495]
[1733144934031,21.17104115,223.49,223.43,17.2325]
[1733144935551,0.67941227,223.53,223.43,17.2325]
[1733144935552,21.17104115,223.48,223.43,17.2325]
[1733144935843,21.17104115,223.49,223.43,17.2325]
[1733144936656,21.17104115,223.5,223.43,38.40354115]
[1733144936833,0.67941227,223.58,223.48,21.17104115]
[1733144937038,0.6409615,223.63,223.44,1.0182319]
[1733144937039,21.17104115,223.56,223.51,4.495]
[1733144937366,0.67941227,223.55,223.51,4.495]
[1733144937528,21.17104115,223.57,223.51,4.495]
[1733144937730,0.67941227,223.56,223.51,4.495]
[1733144939839,44.94792515,223.55,223.51,4.495]
[1733144940050,21.17104115,223.53,223.51,4.495]
[1733144940543,23.776884,223.51,223.43,12.7375]
[1733144940745,21.17104115,223.48,223.43,12.7375]
[1733144941426,21.17104115,223.48,223.44,4.495]
[1733144941847,21.85045342,223.47,223.44,4.495]
[1733144942026,21.17104115,223.45,223.38,12.3489]
[1733144942232,21.17104115,223.39,223.34,32.7462]
[1733144942450,9.20619634,223.37,223.35,4.495]
[1733144942751,21.17104115,223.38,223.35,4.495]
[1733144943054,10.0,223.49,223.35,4.495]
[1733144943055,21.17104115,223.4,223.35,4.495]
[1733144943355,20.67941227,223.46,223.37,25.66604115]
[1733144943356,21.17104115,223.43,223.37,25.66604115]
[1733144944248,21.17104115,223.39,223.38,4.495]
[1733144944457,21.17104115,223.4,223.38,4.495]
[1733144944636,21.17104115,223.43,223.38,4.495]
[1733144945230,21.17104115,223.42,223.37,4.495]
[1733144945430,21.17104115,223.4,223.37,4.495]
[1733144945955,21.17104115,223.42,223.37,4.495]
[1733144946126,23.776884,223.42,223.37,25.66604115]
[1733144946333,23.776884,223.42,223.38,25.66604115]
[1733144946531,44.94792515,223.43,223.38,4.495]
[1733144946949,21.17104115,223.42,223.38,4.495]
[1733144947763,44.94792515,223.43,223.38,4.495]
[1733144948265,21.17104115,223.41,223.38,4.495]
[1733144948556,21.17104115,223.41,223.35,25.66604115]
[1733144948933,23.776884,223.41,223.37,4.495]
[1733144949130,44.94792515,223.43,223.37,4.495]
[1733144949331,21.17104115,223.44,223.38,25.66604115]
[1733144949571,21.17104115,223.46,223.39,25.66604115]
[1733144949772,21.17104115,223.46,223.34,33.63910817]
[1733144949773,21.17104115,223.46,223.41,4.495]
[1733144950045,21.17104115,223.43,223.41,4.495]
[1733144950755,21.97594342,223.42,223.38,4.495]
[1733144950932,44.94792515,223.39,223.38,4.495]
[1733144951334,21.17104115,223.41,223.38,4.495]
[1733144951555,0.67941227,223.48,223.38,4.495]
[1733144951556,21.17104115,223.44,223.38,25.66604115]
[1733144951739,23.776884,223.43,223.38,25.66604115]
[1733144951934,23.776884,223.43,223.38,4.495]
[1733144952337,21.17104115,223.41,223.38,4.495]
[1733144952577,23.776884,223.41,223.38,4.495]
[1733144953066,23.776884,223.43,223.4,4.495]
[1733144953356,23.776884,223.44,223.4,4.495]
[1733144953762,23.776884,223.45,223.4,25.66604115]
[1733144953947,44.94792515,223.45,223.4,4.495]
[1733144954941,44.94792515,223.43,223.41,4.495]
[1733144955147,23.776884,223.41,223.36,4.495]
[1733144955343,44.94792515,223.41,223.36,4.495]
[1733144955548,21.17104115,223.4,223.36,4.495]
[1733144955936,21.17104115,223.43,223.38,4.495]
[1733144956265,23.776884,223.44,223.39,21.17104115]
[1733144956567,23.776884,223.44,223.4,4.495]
[1733144957162,44.94792515,223.44,223.41,4.495]
[1733144957746,44.94792515,223.42,223.37,4.495]
[1733144958064,23.776884,223.4,223.37,4.495]
[1733144958269,21.17104115,223.42,223.38,4.495]
[1733144958565,23.776884,223.42,223.38,4.495]
[1733144958748,21.17104115,223.45,223.39,21.17104115]
[1733144959068,23.776884,223.44,223.39,21.17104115]
[1733144959246,23.776884,223.45,223.4,4.495]
[1733144959738,24.45629627,223.45,223.4,4.495]
[1733144960150,45.62733742,223.45,223.4,4.495]
[1733144960467,44.94792515,223.45,223.4,4.495]
[1733144960647,44.94792515,223.45,223.39,4.495]
[1733144962144,44.94792515,223.45,223.4,4.495]
[1733144962344,23.776884,223.45,223.4,4.495]
[1733144962962,45.08607205,223.45,223.4,4.495]
[1733144963270,45.08607205,223.45,223.39,4.495]
[1733144963649,37.15232485,223.45,223.39,4.495]
[1733144964048,37.15232485,223.45,223.38,13.23729395]
[1733144964359,17.15232485,223.45,223.39,13.23729395]
[1733144964565,13.37544085,223.45,223.39,13.23729395]
[1733144964872,13.37544085,223.45,223.39,4.495]
[1733144965475,13.91670622,223.44,223.39,4.495]
[1733144965647,13.23729395,223.44,223.39,4.495]
[1733144965962,0.1381469,223.45,223.38,17.73229395]
[1733144966269,13.37544085,223.45,223.38,17.73229395]
[1733144966483,13.23729395,223.4,223.33,26.42929395]
[1733144966845,0.67941227,223.44,223.33,13.192]
[1733144967059,13.23729395,223.39,223.33,13.192]
[1733144967666,13.23729395,223.37,223.33,13.192]
[1733144967967,13.23729395,223.35,223.29,31.1059]
[1733144968270,13.23729395,223.36,223.29,44.34319395]
[1733144969155,13.23729395,223.34,223.28,26.22049395]
[1733144969461,13.23729395,223.35,223.29,13.23729395]
[1733144970671,13.23729395,223.3,223.22,3.73810362]
[1733144970882,24.027864,223.34,223.22,2.84484241]
[1733144970883,13.23729395,223.26,223.22,2.84484241]
[1733144971871,13.23729395,223.26,223.2,12.5023]
[1733144972259,13.23729395,223.25,223.2,12.5023]
[1733144972467,13.23729395,223.23,223.2,12.5023]
[1733144972767,13.23729395,223.21,223.13,12.5132]
[1733144972942,13.23729395,223.17,223.13,12.5132]
[1733144973655,13.23729395,223.18,223.13,12.5132]
[1733144973848,13.23729395,223.17,223.13,12.5132]
[1733144975548,21.23229699,223.17,223.13,12.5132]
[1733144975871,21.23229699,223.14,223.07,44.5461]
[1733144976062,21.23229699,223.11,223.07,12.0942]
[1733144976246,21.23229699,223.12,223.07,12.0942]
[1733144976642,21.23229699,223.11,223.07,12.0942]
[1733144977065,21.23229699,223.15,223.08,21.23229699]
[1733144977272,21.23229699,223.18,223.12,21.23229699]
[1733144977452,21.23229699,223.19,223.12,21.23229699]
[1733144977652,21.23229699,223.22,223.12,4.495]
[1733144977964,0.67941227,223.25,223.17,25.72729699]
[1733144978148,21.23229699,223.23,223.17,25.72729699]
[1733144978348,21.91170926,223.22,223.17,4.495]
[1733144978645,21.23229699,223.2,223.13,56.10559699]
[1733144979152,0.67941227,223.27,223.14,21.23229699]
[1733144979153,21.23229699,223.21,223.14,21.23229699]
[1733144980771,21.23229699,223.23,223.16,21.23229699]
[1733144980960,21.23229699,223.23,223.01,32.2441]
[1733144980961,20.0,223.14,223.01,32.2441]
[1733144981278,21.23229699,223.09,223.01,53.47639699]
[1733144981460,0.67941227,223.08,223.01,53.47639699]
[1733144981773,21.23229699,223.1,223.02,21.23229699]
[1733144981947,21.23229699,223.1,223.03,21.23229699]
[1733144982570,21.91170926,223.11,223.03,21.23229699]
[1733144982771,21.91170926,223.13,223.06,21.23229699]
[1733144982976,0.67941227,223.13,223.06,21.23229699]
[1733144983152,41.23229699,223.14,223.06,21.23229699]
[1733144983348,21.23229699,223.14,223.06,21.23229699]
[1733144983554,21.23229699,223.15,223.08,21.23229699]
[1733144983770,21.23229699,223.16,223.08,21.23229699]
[1733144984172,21.23229699,223.15,223.08,21.23229699]
[1733144984562,21.23229699,223.16,223.09,21.23229699]
[1733144985202,21.23229699,223.17,223.1,21.23229699]
[1733144985476,21.23229699,223.18,223.11,21.23229699]
[1733144985677,21.23229699,223.18,223.12,4.495]
[1733144986267,21.23229699,223.19,223.12,4.495]
[1733144986460,21.23229699,223.19,223.12,25.72729699]
[1733144986652,21.23229699,223.21,223.14,21.23229699]
[1733144986849,21.23229699,223.2,223.13,25.72729699]
[1733144987966,21.23229699,223.19,223.13,4.495]
[1733144988678,21.23229699,223.2,223.13,25.72729699]
[1733144988863,21.23229699,223.16,223.09,4.495]
[1733144989066,21.23229699,223.14,223.09,4.495]
[1733144989268,21.23229699,223.13,223.09,4.495]
[1733144989478,21.23229699,223.12,223.05,33.56579699]
[1733144989976,21.23229699,223.12,223.05,38.06079699]
[1733144990279,21.23229699,223.12,223.06,0.12549]
[1733144990453,21.23229699,223.12,223.05,38.06079699]
[1733144991051,21.23229699,223.12,223.06,21.23229699]
[1733144991258,21.23229699,223.18,223.11,21.23229699]
[1733144991485,21.23229699,223.2,223.14,21.23229699]
[1733144991777,21.23229699,223.19,223.13,25.72729699]
[1733144991971,21.23229699,223.19,223.13,21.23229699]
[1733144992156,21.23229699,223.19,223.14,4.495]
[1733144992362,21.23229699,223.2,223.14,4.495]
[1733144992561,21.23229699,223.22,223.16,21.23229699]
[1733144992770,0.67941227,223.27,223.17,34.51439699]
[1733144992771,21.23229699,223.24,223.17,34.51439699]
[1733144993261,21.23229699,223.24,223.18,4.495]
[1733144993461,21.23229699,223.23,223.18,4.495]
[1733144993652,21.23229699,223.22,223.18,4.495]
[1733144994278,21.23229699,223.21,223.18,4.495]
[1733144996573,21.23229699,223.2,223.18,4.495]
[1733144996760,21.23229699,223.23,223.18,4.495]
[1733144997881,21.23229699,223.25,223.18,25.72729699]
[1733144998878,21.23229699,223.24,223.18,4.495]
[1733144999082,21.23229699,223.25,223.18,25.72729699]
[1733144999661,13.25909652,223.26,223.2,24.495]
[1733144999981,13.25909652,223.22,223.2,4.495]
[1733145000161,13.25909652,223.21,223.2,4.495]
[1733145000582,13.25909652,223.21,223.17,13.2821]
[1733145000880,13.25909652,223.18,223.17,13.2821]
[1733145001083,13.25909652,223.19,223.17,13.2821]
[1733145001262,13.25909652,223.23,223.17,13.2821]
[1733145001459,13.25909652,223.21,223.18,4.495]
[1733145001663,13.25909652,223.2,223.17,13.2821]
[1733145002074,1.79901227,223.28,223.17,13.2821]
[1733145002075,13.25909652,223.19,223.17,13.2821]
[1733145002581,0.67941227,223.26,223.17,13.2821]
[1733145002582,13.25909652,223.2,223.18,4.495]
[1733145002762,0.67941227,223.26,223.18,4.495]
[1733145002763,13.25909652,223.21,223.18,4.495]
[1733145002966,0.67941227,223.28,223.2,4.495]
[1733145003178,13.25909652,223.26,223.2,4.495]
[1733145004195,0.12549,223.31,223.21,4.495]
[1733145004383,1.1192,223.36,223.23,4.495]
[1733145004573,13.25909652,223.29,223.23,4.495]
[1733145005294,13.25909652,223.27,223.24,4.495]
[1733145005582,21.21352751,223.26,223.22,20.0]
[1733145006672,1.1194,223.33,223.22,20.0]
[1733145006869,20.0,223.36,223.22,20.0]
[1733145006870,21.21352751,223.28,223.22,41.21352751]
[1733145007067,21.21352751,223.29,223.23,21.21352751]
[1733145008191,21.21352751,223.27,223.21,0.12549]
[1733145008487,21.21352751,223.27,223.2,41.21352751]
[1733145008706,21.21352751,223.28,223.21,41.21352751]
[1733145009001,21.21352751,223.27,223.21,20.0]
[1733145009179,0.67941227,223.33,223.21,20.0]
[1733145009383,21.21352751,223.28,223.21,41.21352751]
[1733145009682,21.21352751,223.27,223.2,41.21352751]
[1733145010091,21.21352751,223.23,223.17,13.2821]
[1733145010415,21.21352751,223.18,223.17,13.2821]
[1733145010694,21.21352751,223.18,223.11,12.9839]
[1733145010893,37.1364,223.27,223.11,14.00837863]
[1733145010894,0.67941227,223.26,223.11,14.00837863]
[1733145011101,20.0,223.24,223.11,14.00837863]
[1733145011273,21.21352751,223.17,223.11,14.00837863]
[1733145011895,21.21352751,223.16,223.11,14.00837863]
[1733145012199,21.21352751,223.15,223.11,14.00837863]
[1733145012432,21.21352751,223.14,223.11,14.00837863]
[1733145012579,21.21352751,223.12,223.11,1.02447863]
[1733145013773,0.67941227,223.18,223.11,1.02447863]
[1733145013774,21.21352751,223.14,223.11,1.02447863]
[1733145013978,21.21352751,223.19,223.12,21.21352751]
[1733145014179,21.21352751,223.21,223.14,21.21352751]
[1733145014398,21.21352751,223.22,223.16,21.21352751]
[1733145014598,21.21352751,223.22,223.13,45.8373]
[1733145014803,21.21352751,223.22,223.15,21.21352751]
[1733145015007,0.67941227,223.26,223.13,45.8373]
[1733145015008,21.21352751,223.19,223.13,45.8373]
[1733145015501,21.21352751,223.2,223.14,4.495]
[1733145016077,21.21352751,223.19,223.14,4.495]
[1733145016296,21.21352751,223.18,223.14,4.495]
[1733145016503,1.79921227,223.25,223.13,45.8373]
[1733145016504,21.21352751,223.15,223.13,12.5389]
[1733145016801,5.93039227,223.24,223.13,12.5389]
[1733145016987,21.21352751,223.2,223.13,33.75242751]
[1733145017598,21.21352751,223.2,223.14,4.495]
[1733145018418,21.21352751,223.17,223.14,4.495]
[1733145018699,21.21352751,223.15,223.12,4.495]
[1733145019079,21.21352751,223.14,223.12,4.495]
[1733145019280,21.21352751,223.13,223.12,4.495]
[1733145019509,21.21352751,223.14,223.09,4.495]
[1733145020177,21.21352751,223.15,223.09,4.495]
[1733145020377,21.21352751,223.16,223.09,25.70852751]
[1733145020680,21.21352751,223.17,223.12,4.495]
[1733145021504,21.21352751,223.17,223.11,4.495]
[1733145022598,21.21352751,223.16,223.09,25.70852751]
[1733145022899,21.21352751,223.14,223.09,4.495]
[1733145023306,21.21352751,223.16,223.09,25.70852751]
[1733145023506,21.21352751,223.17,223.11,4.495]
[1733145025119,21.21352751,223.17,223.1,25.70852751]
[1733145025410,21.21352751,223.21,223.14,25.70852751]
[1733145026006,21.21352751,223.2,223.14,4.495]
[1733145026378,21.21352751,223.2,223.15,4.495]
[1733145027102,21.21352751,223.22,223.16,25.70852751]
[1733145027689,13.2633175,223.22,223.16,13.2633175]
[1733145027885,1.79901227,223.29,223.16,13.2633175]
[1733145027886,13.2633175,223.23,223.16,13.2633175]
[1733145028202,13.2633175,223.25,223.19,4.495]
[1733145028408,13.2633175,223.24,223.19,4.495]
[1733145029291,13.2633175,223.24,223.18,4.495]
[1733145029698,13.2633175,223.23,223.18,4.495]
[1733145030101,13.2633175,223.22,223.18,4.495]
[1733145030804,13.2633175,223.23,223.18,4.495]
[1733145031018,13.2633175,223.24,223.18,4.495]
[1733145031390,13.2633175,223.24,223.2,4.495]
[1733145031597,13.2633175,223.25,223.2,4.495]
[1733145031800,13.2633175,223.26,223.2,4.495]
[1733145032496,13.2633175,223.27,223.2,17.7583175]
[1733145032719,13.2633175,223.27,223.22,4.495]
[1733145033218,13.2633175,223.28,223.23,4.495]
[1733145033412,13.2633175,223.27,223.23,4.495]
[1733145033798,13.2633175,223.27,223.22,4.495]
[1733145033991,13.2633175,223.26,223.22,4.495]
[1733145035018,13.2633175,223.26,223.21,4.495]
[1733145035213,13.2633175,223.27,223.23,4.495]
[1733145035519,13.2633175,223.25,223.2,4.495]
[1733145035723,13.2633175,223.24,223.2,4.495]
[1733145036098,13.2633175,223.25,223.2,4.495]
[1733145036998,13.2633175,223.27,223.22,4.495]
[1733145037517,13.2633175,223.28,223.22,4.495]
[1733145037825,13.2633175,223.29,223.23,4.495]
[1733145038119,13.2633175,223.3,223.23,17.7583175]
[1733145038896,13.2633175,223.28,223.24,4.495]
[1733145039417,13.2633175,223.33,223.27,13.2633175]
[1733145039719,13.2633175,223.35,223.28,13.2633175]
[1733145039926,0.67941227,223.4,223.31,13.2633175]
[1733145040094,13.4014644,223.39,223.33,13.2633175]
[1733145040719,13.4014644,223.39,223.34,4.495]
[1733145040916,13.2633175,223.36,223.33,4.495]
[1733145041597,13.2633175,223.37,223.33,4.495]
[1733145042005,13.2633175,223.37,223.32,4.495]
[1733145043206,0.1381469,223.39,223.36,13.2633175]
[1733145043613,0.1381469,223.39,223.36,13.2368]
[1733145044104,13.2633175,223.37,223.3,32.0527]
[1733145044310,13.2633175,223.31,223.3,4.495]
[1733145044509,13.2633175,223.31,223.25,31.5259]
[1733145044729,13.2633175,223.32,223.25,44.7892175]
[1733145045406,13.2633175,223.32,223.26,4.495]
[1733145045603,13.2633175,223.3,223.26,4.495]
[1733145046226,13.2633175,223.29,223.26,4.495]
[1733145046413,13.2633175,223.27,223.24,12.6362]
[1733145046733,13.2633175,223.28,223.24,12.6362]
[1733145047030,13.2633175,223.29,223.24,12.6362]
[1733145047232,13.2633175,223.28,223.24,12.6362]
[1733145047524,1.79871227,223.35,223.24,12.6362]
[1733145047525,13.2633175,223.3,223.25,4.48]
[1733145047733,13.2633175,223.32,223.25,13.2633175]
[1733145047901,13.2633175,223.31,223.24,25.8995175]
[1733145048230,0.67941227,223.37,223.27,13.2633175]
[1733145048428,13.2633175,223.35,223.29,4.48]
[1733145048729,13.2633175,223.34,223.3,4.48]
[1733145048932,13.2633175,223.33,223.3,4.48]
[1733145049428,13.2633175,223.31,223.25,4.48]
[1733145050033,13.2633175,223.3,223.25,4.48]
[1733145050699,13.2633175,223.29,223.25,4.48]
[1733145051230,13.2633175,223.26,223.18,26.3249175]
[1733145051400,13.2633175,223.25,223.18,26.3249175]
[1733145051600,13.2633175,223.26,223.19,13.2633175]
[1733145052217,13.2633175,223.26,223.22,4.48]
[1733145053430,13.2633175,223.25,223.22,4.48]
[1733145055528,13.2633175,223.26,223.22,4.48]
[1733145055904,13.2633175,223.24,223.19,4.48]
[1733145056225,13.2633175,223.2,223.15,30.6125]
[1733145056429,13.2633175,223.18,223.15,30.6125]
[1733145056607,13.2633175,223.19,223.15,30.6125]
[1733145057103,13.2633175,223.19,223.16,4.48]
[1733145058211,13.2633175,223.23,223.17,4.48]
[1733145059121,13.2633175,223.23,223.18,4.48]
[1733145059308,13.2633175,223.24,223.18,4.48]
[1733145059507,13.2633175,223.25,223.18,17.7433175]
[1733145059708,13.2633175,223.25,223.2,4.48]
[1733145060728,13.2633175,223.24,223.18,4.48]
[1733145062334,13.2633175,223.22,223.16,4.48]
[1733145062919,13.2633175,223.2,223.16,4.48]
[1733145063125,13.2633175,223.18,223.16,4.48]
[1733145063429,13.2633175,223.19,223.17,4.48]
[1733145063618,13.94272977,223.18,223.07,25.7428175]
[1733145063818,13.2633175,223.14,223.07,25.7428175]
[1733145064330,13.2633175,223.14,223.08,4.48]
[1733145066823,13.2633175,223.16,223.08,17.7433175]
[1733145067023,16.13550931,223.3,223.07,12.4795]
[1733145067024,0.67941227,223.2,223.11,23.902374]
[1733145067232,13.2633175,223.22,223.15,17.7433175]
[1733145067443,13.2633175,223.2,223.15,4.48]
[1733145068220,13.2633175,223.2,223.14,4.48]
[1733145069712,13.2633175,223.23,223.18,4.48]
[1733145070210,13.2633175,223.21,223.14,13.2633175]
[1733145070817,13.2633175,223.21,223.15,4.48]
[1733145071730,13.2633175,223.21,223.07,22.47148699]
[1733145071731,13.2633175,223.16,223.07,12.4795]
[1733145071939,13.2633175,223.18,223.1,17.7433175]
[1733145072127,13.2633175,223.18,223.11,13.2633175]
[1733145072640,13.2633175,223.21,223.14,13.2633175]
[1733145072843,13.2633175,223.22,223.16,4.48]
[1733145073137,13.2633175,223.22,223.16,4.60549]
[1733145074135,13.2633175,223.19,223.14,4.48]
[1733145074336,51.5769175,223.3,223.14,4.48]
[1733145074337,13.2633175,223.18,223.14,4.48]
[1733145074516,13.2633175,223.19,223.14,4.48]
[1733145074838,1.79921227,223.25,223.14,4.48]
[1733145074839,13.2633175,223.2,223.14,4.48]
[1733145075020,13.2633175,223.21,223.14,17.7433175]
[1733145075224,13.94272977,223.2,223.15,4.48]
[1733145075734,13.2633175,223.19,223.15,4.48]
[1733145076035,13.2633175,223.22,223.15,4.48]
[1733145076242,13.2633175,223.22,223.17,4.48]
[1733145077230,13.2633175,223.22,223.16,4.60549]
[1733145078951,13.2633175,223.22,223.11,20.0]
[1733145079124,13.2633175,223.22,223.16,4.48]
[1733145079450,13.2633175,223.22,223.16,36.868]
[1733145079647,0.67941227,223.25,223.18,26.1628175]
[1733145080025,13.94272977,223.25,223.19,4.48]